bitfinex-derivatives/quotes_ETHF0:USTF0_20260314
["timestamp","ask_amount","ask_price","bid_price","bid_amount"]
[1773520891723,0.57630578,2081.9,2081.4,0.54604878]
[1773520891918,1.17179989,2081.9,2081.4,0.54604878]
[1773520892431,6.10516429,2081.8,2081.4,0.54604878]
[1773520893230,6.10516429,2081.8,2081.5,0.52202386]
[1773520894223,6.11516429,2081.8,2081.5,0.52572531]
[1773520894626,6.69147007,2081.8,2081.5,0.52572531]
[1773520894826,0.76637007,2081.8,2081.5,0.52572531]
[1773520895028,1.36186418,2081.8,2081.5,0.52572531]
[1773520895226,0.76637007,2081.8,2081.5,0.52572531]
[1773520895429,1.36186418,2081.8,2081.5,0.52572531]
[1773520896934,1.18179989,2081.8,2081.5,0.52572531]
[1773520897735,0.60549411,2081.8,2081.5,0.52572531]
[1773520898430,0.01,2081.8,2081.5,0.52572531]
[1773520899133,0.57630578,2081.9,2081.5,0.52572531]
[1773520899334,0.18006429,2081.8,2081.5,0.52572531]
[1773520899532,0.74479826,2081.8,2081.5,0.52572531]
[1773520899727,0.18006429,2081.8,2081.5,0.52572531]
[1773520900130,0.56473397,2081.7,2081.5,0.52572531]
[1773520900630,0.18006429,2081.8,2081.5,0.52572531]
[1773520900835,0.56473397,2081.7,2081.5,0.52572531]
[1773520903842,0.54071399,2081.6,2081.5,0.52572531]
[1773520904141,0.18006429,2081.8,2081.5,0.52572531]
[1773520909548,1.38939637,2082.6,2081.8,1.2753889]
[1773520909746,2.90588158,2082.6,2081.8,1.2753889]
[1773520909948,1.38939637,2082.5,2081.8,1.2753889]
[1773520911448,1.34951849,2082.3,2081.6,1.27955246]
[1773520911649,1.34951849,2082.1,2081.5,0.00370145]
[1773520913248,1.34951849,2081.9,2081.5,6.00336297]
[1773520914750,1.34951849,2081.9,2081.2,1.27955246]
[1773520915550,1.34951849,2081.9,2081.2,1.28306795]
[1773520916146,1.34951849,2081.9,2081.2,8.71177419]
[1773520919251,1.34951849,2081.9,2081.3,1.27955246]
[1773520919750,1.34951849,2081.9,2081.4,1.27955246]
[1773520920057,1.34951849,2082.2,2081.6,1.27955246]
[1773520923454,1.34951849,2082.2,2081.4,8.7082587]
[1773520923656,1.34951849,2082.2,2081.3,8.7082587]
[1773520923853,1.51648521,2082.1,2081.3,8.7082587]
[1773520924049,1.34951849,2082.0,2081.3,8.7082587]
[1773520925258,1.34951849,2081.8,2081.2,8.71177419]
[1773520926453,1.34951849,2081.8,2081.2,7.43222173]
[1773520926761,1.34951849,2081.8,2081.2,0.00351549]
[1773520940271,1.34951849,2081.8,2081.2,8.71177419]
[1773520944770,1.34951849,2081.8,2081.4,6.01627471]
[1773520945973,1.34951849,2081.8,2081.4,3.59929471]
[1773520946179,1.34951849,2081.8,2081.2,0.00351549]
[1773520948878,8.55951849,2081.8,2081.2,0.00351549]
[1773520949179,1.34256471,2081.7,2081.2,0.00351549]
[1773520962688,1.34256471,2081.7,2081.2,1.30354755]
[1773520962894,1.34256471,2081.8,2081.2,1.30354755]
[1773520969595,1.23921189,2082.2,2081.4,1.26681744]
[1773520969800,1.23921189,2082.2,2081.5,1.26681744]
[1773520998326,1.23921189,2082.2,2081.6,1.48168597]
[1773521000828,8.69343515,2082.4,2081.6,1.48168597]
[1773521001329,1.46743515,2082.3,2081.6,1.48168597]
[1773521017636,7.226,2082.4,2081.7,1.34847073]
[1773521018636,7.226,2082.4,2081.8,1.34847073]
[1773521019842,8.60129994,2082.4,2081.8,1.34847073]
[1773521020542,1.37529994,2082.3,2081.8,1.34847073]
[1773521024044,7.233,2082.3,2081.8,1.34847073]
[1773521024253,0.01,2082.5,2081.8,1.34847073]
[1773521024546,0.01,2082.5,2081.7,8.94264335]
[1773521024547,7.25801998,2082.6,2082.0,1.34847073]
[1773521025537,0.02401998,2082.6,2082.0,1.34847073]
[1773521025743,0.00385738,2082.9,2082.2,8.77717697]
[1773521025949,0.00385738,2082.9,2082.3,1.34847073]
[1773521026450,1.37529994,2082.7,2082.2,1.34847073]
[1773521030852,1.28629536,2082.8,2082.2,1.34847073]
[1773521032156,0.00385738,2082.9,2082.4,1.31385693]
[1773521032961,1.23830156,2083.0,2082.4,1.31385693]
[1773521033156,1.23830156,2083.2,2082.4,1.31385693]
[1773521033957,1.24229825,2083.2,2082.4,1.31385693]
[1773521035363,1.23830156,2083.1,2082.4,1.31385693]
[1773521049570,0.00399669,2083.2,2082.4,1.31385693]
[1773521049770,1.24229825,2083.2,2082.4,1.31385693]
[1773521053177,1.24229825,2083.2,2082.5,1.31385693]
[1773521055779,1.23830156,2083.1,2082.5,1.31385693]
[1773521055979,1.23830156,2082.9,2082.3,8.74256317]
[1773521056472,1.23830156,2082.9,2082.2,8.74256317]
[1773521056673,1.23830156,2082.9,2082.2,1.31385693]
[1773521057279,1.23830156,2082.9,2082.3,1.31385693]
[1773521060886,1.23830156,2082.7,2082.2,8.74256317]
[1773521061188,1.23830156,2082.7,2082.2,1.31385693]
[1773521069187,1.15172896,2083.1,2082.2,1.31385693]
[1773521069383,1.15172896,2083.1,2082.3,1.18841022]
[1773521071595,1.15172896,2083.1,2082.3,8.61711646]
[1773521071798,1.15172896,2083.1,2082.4,1.18841022]
[1773521076500,1.15172896,2083.1,2082.5,1.18841022]
[1773521077107,1.15172896,2083.1,2082.6,1.18841022]
[1773521088408,0.00399669,2083.2,2082.6,1.18841022]
[1773521088815,1.0816108,2083.2,2082.6,1.18841022]
[1773521093113,1.00813035,2083.6,2082.8,1.07615382]
[1773521093414,1.00813035,2083.6,2082.9,1.07615382]
[1773521094220,0.81315124,2084.2,2082.9,1.07973862]
[1773521094515,6.02401848,2084.7,2082.9,1.07973862]
[1773521094516,0.61403679,2084.8,2083.7,0.49142316]
[1773521094817,0.61403679,2084.8,2083.8,0.49142316]
[1773521095017,4.26529169,2085.4,2083.8,0.49142316]
[1773521095018,1.00813035,2085.2,2083.9,0.49142316]
[1773521095217,1.01386163,2085.2,2084.2,0.48434691]
[1773521095519,1.00813035,2085.1,2083.9,0.48224034]
[1773521095716,1.00813035,2084.8,2083.9,0.48224034]
[1773521096216,1.00813035,2084.4,2083.9,0.48224034]
[1773521096610,1.00813035,2084.4,2083.7,0.90327923]
[1773521096812,1.00813035,2084.2,2083.7,0.90327923]
[1773521097211,1.24443536,2084.2,2083.7,0.90327923]
[1773521097615,1.00813035,2084.2,2083.7,0.90327923]
[1773521098715,1.00813035,2084.0,2083.7,0.90327923]
[1773521098917,1.00813035,2084.0,2083.1,8.9419409]
[1773521098918,1.00813035,2084.0,2083.6,0.78690149]
[1773521099418,1.00813035,2084.0,2083.4,0.77958727]
[1773521099717,1.00813035,2084.0,2083.1,0.77958727]
[1773521100617,1.24443536,2084.0,2083.1,0.77958727]
[1773521101310,1.00813035,2083.8,2083.1,0.77958727]
[1773521101617,1.00813035,2083.8,2083.0,0.76715481]
[1773521101813,1.00813035,2083.5,2083.0,0.76715481]
[1773521102013,1.01427829,2083.5,2083.0,0.76715481]
[1773521103417,0.63019829,2083.5,2083.0,0.76715481]
[1773521105713,0.63019829,2083.5,2082.9,1.07973862]
[1773521106112,0.8665033,2083.5,2082.9,1.07973862]
[1773521106622,0.23630501,2083.4,2082.9,1.07973862]
[1773521106822,1.24443536,2083.4,2082.9,1.07973862]
[1773521107018,1.24443536,2083.4,2082.7,1.07615382]
[1773521107019,1.00813035,2083.4,2082.7,1.07615382]
[1773521107223,0.00614794,2083.5,2082.7,1.07615382]
[1773521107224,1.00813035,2083.1,2082.7,1.07615382]
[1773521107618,1.24443536,2083.1,2082.7,1.07615382]
[1773521107821,1.00813035,2083.1,2082.6,1.07615382]
[1773521108022,1.00813035,2083.1,2082.6,1.0797229]
[1773521108223,1.24443536,2083.1,2082.6,1.0797229]
[1773521108723,1.24443536,2083.0,2082.6,1.0797229]
[1773521108915,1.00813035,2083.0,2082.4,1.07615382]
[1773521109116,0.23630501,2082.9,2082.4,1.07615382]
[1773521109323,1.00813035,2082.9,2082.4,1.07615382]
[1773521109725,1.24443536,2082.9,2082.4,1.07615382]
[1773521110021,1.24443536,2082.9,2082.4,1.08044433]
[1773521110022,1.00813035,2082.9,2082.4,1.08044433]
[1773521110221,1.24443536,2082.9,2082.4,1.08044433]
[1773521110917,1.00813035,2082.7,2082.4,0.00429051]
[1773521111324,1.24443536,2082.7,2082.4,0.00429051]
[1773521111527,1.00813035,2082.7,2082.4,0.00429051]
[1773521111715,1.24443536,2082.7,2082.4,0.00429051]
[1773521111919,1.00813035,2082.7,2082.4,0.00429051]
[1773521112521,1.24443536,2082.7,2082.4,0.00043313]
[1773521113327,1.00813035,2082.6,2082.4,0.00043313]
[1773521113721,1.00813035,2083.2,2082.4,1.07658695]
[1773521113920,1.00813035,2082.9,2082.4,1.07658695]
[1773521114323,0.23630501,2082.7,2082.4,1.07658695]
[1773521114524,1.00813035,2082.8,2082.4,1.07658695]
[1773521114924,1.24443536,2082.7,2082.4,1.07658695]
[1773521115124,1.00813035,2083.2,2082.4,1.07658695]
[1773521115324,0.23630501,2083.0,2082.4,1.07658695]
[1773521115525,1.00813035,2082.9,2082.4,1.07658695]
[1773521116329,1.24443536,2082.7,2082.4,1.07658695]
[1773521116628,1.00813035,2083.2,2082.4,1.07658695]
[1773521116930,1.00813035,2082.8,2082.4,1.07658695]
[1773521117431,0.23630501,2082.7,2082.4,1.07658695]
[1773521118131,1.24443536,2082.7,2082.4,1.07658695]
[1773521118330,1.24443536,2082.7,2082.4,0.00043313]
[1773521118630,0.23630501,2082.6,2082.4,0.00043313]
[1773521119430,0.07630501,2082.6,2082.4,0.00043313]
[1773521119631,1.08443536,2082.6,2082.4,0.00043313]
[1773521120027,1.00813035,2082.6,2082.4,0.00043313]
[1773521120428,0.07630501,2082.5,2082.4,0.00043313]
[1773521120929,1.00813035,2083.2,2082.4,0.00043313]
[1773521125737,1.21897556,2083.1,2082.4,0.00043313]
[1773521126540,1.21897556,2082.7,2082.4,0.00043313]
[1773521127135,1.21897556,2082.7,2082.1,1.21753337]
[1773521128142,1.21897556,2082.7,2082.1,1.22295227]
[1773521129643,1.01897556,2082.7,2082.1,1.22295227]
[1773521131248,1.01897556,2082.7,2082.1,0.0054189]
[1773521135039,1.01897556,2082.7,2082.0,1.21753337]
[1773521136145,1.01897556,2082.7,2082.0,1.22225456]
[1773521136951,1.01897556,2082.7,2082.0,7.22578864]
[1773521139452,1.01897556,2082.7,2082.1,1.21753337]
[1773521141956,1.01897556,2082.7,2082.0,6.00825527]
[1773521143063,1.02897556,2082.7,2082.0,6.00825527]
[1773521143365,1.02897556,2082.7,2082.0,7.22578864]
[1773521146060,1.21897556,2082.4,2082.0,5.69672472]
[1773521146365,1.21897556,2082.4,2082.0,1.21753337]
[1773521147065,1.21897556,2082.4,2082.0,1.22232491]
[1773521147963,1.21897556,2082.6,2082.0,1.22232491]
[1773521148164,1.21897556,2082.6,2082.1,1.21753337]
[1773521158165,1.21897556,2082.6,2082.1,0.81350003]
[1773521162566,1.11983849,2082.5,2082.0,0.86241838]
[1773521163463,1.11983849,2082.5,2082.0,0.86619292]
[1773521165870,1.11983849,2082.9,2082.5,0.82754794]
[1773521166077,1.11983849,2083.2,2082.7,0.82754794]
[1773521168473,1.11983849,2083.2,2082.4,1.51299407]
[1773521168474,1.11983849,2083.2,2082.4,0.81042919]
[1773521170677,1.11983849,2083.2,2082.5,0.77644344]
[1773521190884,1.11983849,2083.2,2082.5,6.76997108]
[1773521191081,1.11983849,2083.2,2082.6,0.56223238]
[1773521192475,1.11983849,2083.2,2082.5,5.99352764]
[1773521192676,1.11983849,2083.2,2082.4,5.99352764]
[1773521195286,1.11983849,2083.2,2082.5,5.99352764]
[1773521197291,1.12098135,2083.2,2082.5,5.99352764]
[1773521203697,1.12098135,2083.2,2082.4,6.47124739]
[1773521211298,1.12098135,2083.2,2082.5,0.40685491]
[1773521211798,7.099,2083.1,2082.5,0.40685491]
[1773521211995,8.08752614,2083.1,2082.5,0.40685491]
[1773521212298,0.98852614,2083.0,2082.5,0.40685491]
[1773521217796,0.98852614,2083.0,2082.4,5.79903676]
[1773521218000,0.98852614,2083.0,2082.3,7.42870624]
[1773521218001,0.98852614,2083.0,2082.1,7.42870624]
[1773521218201,7.099,2083.1,2082.2,7.42870624]
[1773521218499,8.11154083,2083.1,2082.2,7.42870624]
[1773521220400,7.099,2083.1,2082.2,7.42870624]
[1773521220604,7.099,2083.1,2082.3,7.42870624]
[1773521222106,7.099,2083.1,2082.4,7.42870624]
[1773521222806,8.11697363,2083.1,2082.4,7.42870624]
[1773521223304,1.02412157,2083.5,2082.6,7.42870624]
[1773521233318,1.02412157,2083.5,2082.5,7.42870624]
[1773521237621,1.0315472,2083.9,2082.9,8.94152588]
[1773521237815,1.0315472,2083.9,2083.2,7.42870624]
[1773521238216,0.00693333,2084.0,2083.1,7.42870624]
[1773521238618,0.0106065,2084.0,2083.2,7.42870624]
[1773521239116,1.03176775,2084.3,2083.2,8.94152588]
[1773521239316,1.03176775,2084.6,2083.3,7.42870624]
[1773521240120,1.03514543,2084.6,2083.3,7.42870624]
[1773521241418,1.03514543,2084.6,2083.5,8.94152588]
[1773521241623,1.03514543,2084.6,2083.5,8.9455336]
[1773521242222,1.03514543,2084.6,2083.5,1.51682736]
[1773521245624,1.03514543,2084.6,2083.7,1.51052045]
[1773521247621,1.03514543,2084.6,2083.5,1.51452817]
[1773521248724,1.03514543,2084.6,2083.7,1.51052045]
[1773521250226,1.03514543,2084.6,2083.9,1.51052045]
[1773521250725,0.00337768,2084.6,2083.9,1.51052045]
[1773521251621,1.01014282,2084.6,2083.9,1.51052045]
[1773521251925,1.01014282,2084.6,2083.7,1.51052045]
[1773521254622,1.01014282,2084.6,2083.7,1.74692719]
[1773521255530,1.01014282,2084.6,2083.6,5.95082245]
[1773521259128,1.01014282,2084.6,2083.6,6.1884165]
[1773521259331,1.02341586,2084.4,2083.6,0.23759405]
[1773521259532,1.02341586,2084.4,2083.5,7.46535062]
[1773521262226,1.02341586,2084.4,2083.6,5.95082245]
[1773521263830,1.02341586,2084.4,2083.5,5.95483017]
[1773521264330,1.02341586,2084.4,2083.6,5.95082245]
[1773521266333,1.02341586,2084.4,2083.7,5.95082245]
[1773521267224,0.99633996,2084.9,2084.2,5.95082245]
[1773521268031,0.99314043,2085.0,2084.3,5.95082245]
[1773521268223,0.99656427,2085.0,2084.3,46.75082245]
[1773521269241,28.4178878,2086.5,2085.3,5.89742]
[1773521269432,0.99264248,2087.1,2086.0,5.96515118]
[1773521269632,0.99264248,2086.3,2085.6,5.96515118]
[1773521269832,1.51052045,2086.4,2085.3,9.90494165]
[1773521269833,0.81289364,2085.9,2085.3,9.90494165]
[1773521270038,0.81289364,2085.8,2085.3,9.90494165]
[1773521270340,0.00530518,2085.8,2085.4,0.81027362]
[1773521270733,1.51052045,2086.4,2085.4,0.81027362]
[1773521270933,0.81289364,2086.3,2085.4,0.81027362]
[1773521271336,12.90474362,2086.1,2085.4,0.81027362]
[1773521271533,0.81289364,2086.2,2085.4,0.81027362]
[1773521271734,3.25508469,2085.9,2085.4,0.81027362]
[1773521272340,3.25508469,2085.7,2085.3,3.40046058]
[1773521272839,1.51551633,2086.2,2085.5,3.39500378]
[1773521272840,3.25508469,2086.1,2085.5,3.39500378]
[1773521275136,0.00499588,2086.2,2085.5,3.39500378]
[1773521275343,3.26008057,2086.2,2085.5,3.39500378]
[1773521276742,16.16482419,2086.2,2085.5,3.39500378]
[1773521276942,3.26008057,2086.2,2085.5,3.39500378]
[1773521279940,3.25508469,2086.1,2085.5,3.39500378]
[1773521280641,3.25508469,2085.9,2085.5,3.39500378]
[1773521281142,3.25508469,2085.9,2085.3,0.0054568]
[1773521281143,3.25508469,2085.5,2085.3,0.0054568]
[1773521281439,3.25508469,2085.5,2084.8,0.23385995]
[1773521281645,3.25508469,2085.5,2084.9,3.39500378]
[1773521282036,3.25508469,2085.4,2084.9,3.39500378]
[1773521282347,3.25508469,2085.6,2084.9,3.39884746]
[1773521282543,3.25508469,2085.4,2084.9,3.39884746]
[1773521283346,16.15982831,2085.4,2084.9,3.39884746]
[1773521283547,3.25508469,2085.4,2084.9,3.39884746]
[1773521284044,16.15982831,2085.4,2084.9,3.39884746]
[1773521284237,3.25508469,2085.4,2084.9,3.39884746]
[1773521284441,3.25508469,2085.3,2084.9,3.39884746]
[1773521284848,12.90474362,2085.2,2084.9,3.39884746]
[1773521285352,3.25508469,2085.3,2084.9,3.39884746]
[1773521285550,12.90474362,2085.2,2084.9,3.39884746]
[1773521285847,12.58718182,2085.2,2084.9,3.39884746]
[1773521286046,3.25508469,2085.3,2084.9,3.39884746]
[1773521286234,12.58718182,2085.2,2084.9,3.39884746]
[1773521286436,3.25508469,2085.3,2084.9,3.39884746]
[1773521286646,12.58718182,2085.2,2084.9,3.39884746]
[1773521286947,3.25508469,2085.6,2084.9,3.39884746]
[1773521287141,15.84226651,2085.6,2084.9,3.39884746]
[1773521287342,3.25508469,2085.6,2084.9,3.39884746]
[1773521287748,15.84226651,2085.4,2084.9,3.39884746]
[1773521287949,3.25508469,2085.8,2084.9,3.39884746]
[1773521288148,12.58718182,2085.5,2084.9,3.39884746]
[1773521288448,3.25508469,2086.0,2085.3,3.39500378]
[1773521289140,12.58718182,2085.8,2085.3,3.39500378]
[1773521289338,3.25508469,2085.7,2085.3,3.39500378]
[1773521289741,15.84226651,2085.7,2085.3,3.39500378]
[1773521289943,3.25508469,2086.0,2085.4,3.39500378]
[1773521290141,0.00499588,2086.2,2085.6,3.39500378]
[1773521290142,3.26008057,2086.2,2085.6,3.39500378]
[1773521291249,3.25508469,2086.0,2085.2,3.39500378]
[1773521293946,3.25508469,2085.8,2085.2,3.39500378]
[1773521295357,3.25508469,2085.8,2085.0,3.39500378]
[1773521297256,3.25508469,2085.8,2085.1,3.39500378]
[1773521299358,3.25508469,2085.8,2085.2,3.39500378]
[1773521299753,3.25508469,2085.8,2085.2,5.97196693]
[1773521300448,3.25508469,2085.8,2085.2,9.36697071]
[1773521300960,3.25508469,2085.8,2085.3,3.39500378]
[1773521301260,3.25508469,2085.8,2085.2,5.97196693]
[1773521301561,3.25508469,2085.8,2085.2,9.3138349]
[1773521306562,3.25508469,2085.8,2085.3,3.34186797]
[1773521308161,3.25508469,2085.8,2085.3,9.3138349]
[1773521309060,3.25508469,2085.8,2085.4,3.34186797]
[1773521309365,3.33868448,2086.1,2085.5,3.34186797]
[1773521310164,3.33868448,2086.1,2085.6,3.34186797]
[1773521311469,3.33868448,2086.1,2085.5,9.3138349]
[1773521311764,3.33868448,2086.1,2085.6,3.34186797]
[1773521312467,3.33868448,2086.1,2085.4,9.3138349]
[1773521312864,3.33868448,2086.1,2085.5,3.34186797]
[1773521320766,3.33868448,2086.1,2085.5,9.3138349]
[1773521323169,3.33868448,2086.1,2085.6,3.34186797]
[1773521327472,3.33868448,2086.1,2085.5,9.3138349]
[1773521330272,3.33868448,2086.1,2085.6,7.06685868]
[1773521333572,3.33868448,2086.1,2085.3,3.23839691]
[1773521333769,3.33868448,2086.1,2085.2,3.23839691]
[1773521334169,5.53546489,2086.2,2085.2,3.23839691]
[1773521334170,7.069,2086.0,2085.2,3.23839691]
[1773521335077,0.92506931,2085.9,2085.2,3.23839691]
[1773521335376,0.92506931,2085.9,2085.0,3.23017804]
[1773521338372,0.69819215,2085.8,2085.0,3.23017804]
[1773521340980,0.69819215,2085.8,2084.9,0.00384368]
[1773521341185,0.69819215,2085.8,2084.9,3.30561293]
[1773521344978,0.62048451,2085.7,2084.9,3.30561293]
[1773521346178,4.02165602,2086.1,2084.9,3.30561293]
[1773521346378,7.66719486,2086.1,2084.9,3.30561293]
[1773521346583,0.58485574,2086.0,2084.9,3.30561293]
[1773521352488,0.55071846,2086.2,2084.9,3.30561293]
[1773521352688,7.088,2086.0,2085.0,3.25432757]
[1773521353592,7.088,2086.0,2085.1,3.24890789]
[1773521353982,0.00499588,2086.2,2085.2,3.24890789]
[1773521354192,0.51821005,2086.1,2085.2,3.24890789]
[1773521354988,0.51334452,2085.9,2085.2,3.24890789]
[1773521355185,0.51334452,2085.7,2085.2,3.24890789]
[1773521359896,0.52334452,2085.7,2085.2,3.24890789]
[1773521360588,0.52334452,2085.7,2084.9,0.00384368]
[1773521360589,0.52334452,2085.7,2085.0,3.22832863]
[1773521360992,0.52334452,2085.7,2084.9,0.00384368]
[1773521360993,2.95344333,2085.5,2084.5,2.9533357]
[1773521362191,2.95344333,2085.5,2084.5,2.95756734]
[1773521366693,7.1,2085.4,2084.6,3.5989219]
[1773521367298,6.63449313,2085.4,2084.7,3.5989219]
[1773521367495,3.79478584,2085.4,2084.7,3.5989219]
[1773521370895,2.87285157,2085.4,2084.8,3.5989219]
[1773521375299,3.5434853,2085.5,2084.8,3.5989219]
[1773521379101,3.5434853,2085.5,2084.9,3.5989219]
[1773521383305,3.5534853,2085.7,2085.0,3.5989219]
[1773521383505,0.01,2085.7,2085.0,9.57397794]
[1773521383712,0.01,2085.7,2085.1,3.5989219]
[1773521385007,7.105,2085.8,2085.2,3.5989219]
[1773521385408,7.105,2085.8,2085.3,3.5989219]
[1773521387307,3.54848118,2086.2,2085.6,3.5989219]
[1773521387507,10.65448118,2086.2,2085.6,3.5989219]
[1773521389108,0.00499588,2086.2,2085.6,3.5989219]
[1773521390110,0.00499588,2086.2,2085.8,3.37324958]
[1773521390308,3.39089739,2086.4,2085.8,3.37324958]
[1773521391313,3.39614407,2086.4,2085.8,3.37324958]
[1773521391709,3.58831635,2086.7,2085.8,3.37324958]
[1773521392015,3.58831635,2086.6,2085.9,3.52301014]
[1773521392810,3.59363265,2086.6,2085.9,3.52301014]
[1773521393412,10.70363265,2086.6,2085.9,3.52301014]
[1773521394308,3.58831635,2086.8,2086.0,3.52301014]
[1773521394511,3.58831635,2086.8,2086.2,3.52301014]
[1773521395411,3.59234474,2086.8,2086.2,3.52834411]
[1773521395614,0.00402839,2086.8,2086.2,3.52834411]
[1773521399316,7.11902839,2086.8,2086.2,3.52834411]
[1773521401522,10.70734474,2086.8,2086.2,3.52834411]
[1773521404515,10.71734474,2086.8,2086.2,3.52834411]
[1773521404921,3.58831635,2086.5,2085.8,3.52301014]
[1773521405825,7.12902839,2086.8,2085.8,3.52301014]
[1773521405826,3.58831635,2086.7,2085.9,3.52301014]
[1773521406022,10.71331635,2086.5,2085.9,3.52301014]
[1773521409823,3.58831635,2086.4,2085.9,3.52301014]
[1773521411524,3.58831635,2086.3,2085.9,3.52301014]
[1773521417833,3.58831635,2086.3,2085.8,3.4350422]
[1773521423738,10.75131635,2086.3,2085.8,3.4350422]
[1773521424137,3.28342329,2086.2,2085.8,3.4350422]
[1773521425039,3.28342329,2086.2,2085.7,2.69110917]
[1773521426041,3.28342329,2086.1,2085.7,0.00436273]
[1773521426735,3.28342329,2086.1,2085.7,2.76028906]
[1773521427341,3.25222329,2086.1,2085.7,2.76028906]
[1773521428544,10.45842329,2086.0,2085.7,2.76028906]
[1773521432048,7.175,2086.0,2085.7,2.76028906]
[1773521433353,10.45842329,2086.0,2085.7,2.76028906]
[1773521438049,3.28342329,2085.9,2085.7,0.00436273]
[1773521438257,3.28342329,2085.9,2085.3,8.57084059]
[1773521438457,3.28342329,2085.9,2085.4,2.59455994]
[1773521439359,3.28342329,2085.9,2085.4,2.60064814]
[1773521447371,3.28342329,2085.9,2085.2,8.45816952]
[1773521448471,3.28342329,2085.9,2085.2,8.46322406]
[1773521450768,3.28342329,2085.9,2085.2,0.00505454]
[1773521454273,3.28342329,2085.9,2085.2,2.38327201]
[1773521456876,3.28342329,2085.9,2085.2,0.00505454]
[1773521459381,3.28342329,2085.9,2085.2,2.29406496]
[1773521459583,3.28342329,2085.9,2085.2,0.00505454]
[1773521468183,3.28342329,2085.9,2085.2,3.0850269]
[1773521468389,3.08746641,2085.8,2084.7,3.18127579]
[1773521469084,3.08746641,2085.6,2084.7,3.18127579]
[1773521469386,3.08746641,2085.4,2084.7,3.18674816]
[1773521470495,10.36946641,2085.6,2084.7,3.18674816]
[1773521470790,10.37046641,2085.6,2084.7,3.18674816]
[1773521471689,10.37046641,2085.6,2084.8,3.18127579]
[1773521476292,10.37046641,2085.6,2084.9,3.18127579]
[1773521477193,3.08746641,2085.5,2084.9,3.18127579]
[1773521484700,10.3061399,2085.6,2084.9,3.18127579]
[1773521485200,2.9901399,2085.5,2084.9,3.18127579]
[1773521494405,2.9901399,2085.5,2085.1,3.07667439]
[1773521495411,10.3241399,2085.7,2085.1,3.07667439]
[1773521495911,2.9901399,2085.6,2085.1,3.07667439]
[1773521500111,2.9901399,2086.1,2085.1,3.07667439]
[1773521500317,2.9901399,2085.9,2085.1,3.07667439]
[1773521506425,2.9901399,2085.7,2085.1,3.07667439]
[1773521513634,2.9901399,2085.7,2084.9,7.41125316]
[1773521513932,2.9901399,2085.7,2085.0,2.84618751]
[1773521518039,2.94081005,2085.6,2085.0,2.84618751]
[1773521536448,2.94081005,2085.5,2084.9,2.84618751]
[1773521536649,2.94081005,2085.5,2085.0,2.84618751]
[1773521539346,2.95081005,2085.5,2085.0,2.84618751]
[1773521542450,2.58905505,2085.7,2085.3,2.603414]
[1773521546857,10.05805505,2085.7,2085.3,2.603414]
[1773521547157,2.58905505,2085.6,2085.3,2.603414]
[1773521549861,2.58905505,2085.6,2085.2,2.603414]
[1773521559761,2.58905505,2085.7,2085.2,2.603414]
[1773521559958,10.09605505,2085.9,2085.2,2.603414]
[1773521560157,2.58905505,2085.8,2085.2,2.603414]
[1773521565670,2.58905505,2085.8,2085.1,7.64503151]
[1773521566371,2.58905505,2085.8,2085.1,10.24844551]
[1773521566765,2.58905505,2085.8,2085.1,2.83719235]
[1773521567272,2.58905505,2085.8,2085.1,10.24844551]
[1773521567871,2.58905505,2085.8,2085.2,2.603414]
[1773521572169,2.4394145,2085.7,2085.3,2.57715845]
[1773521590396,2.4394145,2085.7,2085.2,7.41125316]
[1773521590595,2.4394145,2085.7,2085.2,9.98841161]
[1773521593397,2.4394145,2085.7,2085.3,2.57715845]
[1773521594493,9.9724145,2085.8,2085.3,2.57715845]
[1773521595395,9.9724145,2085.8,2085.4,2.57715845]
[1773521597505,2.4394145,2086.3,2085.4,2.57715845]
[1773521597696,2.4394145,2085.9,2085.4,2.57715845]
[1773521607407,2.4394145,2085.9,2085.2,9.70747841]
[1773521607809,2.4394145,2085.9,2085.3,2.29622525]
[1773521610710,2.4394145,2085.9,2085.2,7.41125316]
[1773521610910,2.4394145,2085.9,2085.1,2.29622525]
[1773521613617,2.4394145,2085.9,2085.2,2.29622525]
[1773521614317,2.4394145,2085.9,2085.3,1.50861048]
[1773521614513,2.4394145,2085.9,2085.4,2.29622525]
[1773521619119,2.23302326,2086.2,2085.4,2.29622525]
[1773521630828,2.23302326,2086.2,2085.5,2.08289856]
[1773521642037,2.23302326,2086.2,2085.6,2.21311962]
[1773521644539,2.23302326,2086.2,2085.8,2.21311962]
[1773521648351,2.13045451,2086.3,2085.8,2.21311962]
[1773521650356,2.13045451,2086.3,2085.8,2.44684407]
[1773521651152,0.89270533,2086.4,2085.8,2.44684407]
[1773521651349,3.02315984,2086.4,2085.8,2.44684407]
[1773521652858,2.13045451,2086.3,2085.8,2.44684407]
[1773521666968,2.13045451,2086.3,2085.9,2.03113156]
[1773521681576,2.13045451,2086.3,2085.6,6.89661169]
[1773521681981,2.13045451,2086.3,2085.5,1.93286689]
[1773521709208,2.13045451,2086.3,2085.6,2.00694643]
[1773521735535,3.63883796,2086.3,2085.6,2.00694643]
[1773521735736,1.71821299,2086.2,2085.6,2.00694643]
[1773521736741,1.71821299,2086.2,2085.5,7.46902589]
[1773521737235,1.71821299,2086.2,2085.5,9.28774632]
[1773521737438,1.71821299,2086.2,2085.6,1.81872043]
[1773521764662,1.75532703,2086.3,2085.9,1.61187558]
[1773521764867,2.63369616,2086.5,2085.9,1.61187558]
[1773521768870,1.75532703,2086.4,2085.9,1.61187558]
[1773521770374,0.87836913,2086.5,2085.9,1.61187558]
[1773521771672,1.75532703,2086.7,2085.9,1.61187558]
[1773521774983,1.75532703,2086.7,2086.1,1.61187558]
[1773521777877,1.75532703,2086.7,2085.7,9.08090147]
[1773521777878,1.75532703,2086.6,2085.7,9.08090147]
[1773521778176,1.75532703,2086.4,2085.8,1.61187558]
[1773521779480,1.75532703,2086.3,2085.8,1.61187558]
[1773521784688,0.00402839,2086.8,2086.3,1.56919517]
[1773521784891,0.00402839,2086.8,2086.3,1.5734446]
[1773521794509,1.54006348,2087.2,2086.5,1.56919517]
[1773521795506,1.5451976,2087.2,2086.5,1.56919517]
[1773521801008,1.5451976,2087.2,2086.4,1.56919517]
[1773521808307,1.5451976,2087.2,2086.3,0.00424943]
[1773521808815,1.5451976,2087.2,2086.3,1.53441399]
[1773521823321,1.46405869,2087.1,2086.3,1.53441399]
[1773521823822,1.46405869,2087.0,2086.3,0.00424943]
[1773521824019,1.46405869,2086.8,2086.3,0.00424943]
[1773521824519,1.46405869,2086.8,2086.3,1.51844774]
[1773521824720,9.12405869,2086.8,2086.3,1.51844774]
[1773521825116,7.66,2086.8,2086.3,1.51844774]
[1773521825321,1.46405869,2086.7,2086.3,1.51844774]
[1773521835629,1.46405869,2087.1,2086.3,1.51844774]
[1773521835934,1.46405869,2086.8,2086.3,1.51844774]
[1773521845535,1.46405869,2086.8,2086.3,0.00424943]
[1773521850246,1.46405869,2086.8,2086.3,1.44295734]
[1773521851843,7.709,2086.7,2086.3,1.44295734]
[1773521852151,9.16041305,2086.7,2086.3,1.44295734]
[1773521853851,1.45141305,2086.6,2086.3,0.00424943]
[1773521854350,1.45141305,2086.6,2086.3,1.44295734]
[1773521854852,9.16041305,2086.7,2086.3,1.44295734]